[Event "EYCC Girls-U10 2019"]
[Site "Bratislava"]
[Date "2019.08.10"]
[Round "9.11"]
[White "Salmina, Veronika"]
[Black "Shatil, Or"]
[Result "1-0"]
[ECO "D97"]
[WhiteElo "1335"]
[BlackElo "1185"]
[Annotator "NA RC"]
[PlyCount "77"]
[EventDate "2019.08.02"]
[EventType "swiss"]
[EventCountry "SVK"]
[SourceTitle "playchess.com"]
[Source "ChessBase"]
[SourceQuality "1"]
[TimeControl "40/5400+30:1800+30"]

1. d4 {[%emt 0:00:00]} Nf6 {[%emt 0:00:00]} 2. c4 {[%emt 0:00:00]} g6 {[%emt 0:00:00]} 3. Nc3 {[%emt 0:00:00]} d5 {[%emt 0:00:00]} 4. Nf3 {[%emt 0:00:38]} Bg7 {[%emt 0:00:00]} 5. Qb3 {[%emt 0:00:12]} dxc4 {[%emt 0:00:09]} 6. Qxc4 {[%emt 0:01:04]} O-O {[%emt 0:00:13]} 7. e4 {[%emt 0:01:51]} a6 {[%emt 0:00:04]} 8. Qb3 {[%emt 0:00:35]} b5 {[%emt 0:03:13]} 9. e5 {[%emt 0:02:48]} Nfd7 {[%emt 0:00:16]} 10. h4 {[%emt 0:02:19]} c5 {[%emt 0:03:21]} 11. e6 {[%emt 0:05:21]} fxe6 {[%emt 0:01:53]} 12. Qxe6+ {[%emt 0:03:13]} Kh8 {[%emt 0:01:09]} 13. Qd5 {[%emt 0:09:11]} Qc7 {[%emt 0:14:10]} 14. Ng5 {[%emt 0:07:01]} cxd4 {[%emt 0:05:29]} 15. Nce4 {[%emt 0:17:38]} Bb7 {[%emt 0:04:13]} 16. Qe6 {[%emt 0:04:21]} Qe5 {[%emt 0:18:09]} 17. Qxe5 {[%emt 0:02:21]} Bxe5 {[%emt 0:00:58]} 18. h5 {[%emt 0:01:48]} gxh5 {[%emt 0:14:25]} 19. Rxh5 {[%emt 0:00:28]} Bxe4 {[%emt 0:01:03]} 20. Nxe4 {[%emt 0:00:21]} Nf6 {[%emt 0:00:44]} 21. Rxe5 {[%emt 0:01:09]} Nbd7 {[%emt 0:02:43]} 22. Re6 {[%emt 0:02:09]} Nd5 {[%emt 0:01:40]} 23. Bh6 {[%emt 0:03:47]} Rfc8 {[%emt 0:02:01]} 24. Rd1 {[%emt 0:05:21]} Rg8 {[%emt 0:06:42]} 25. Ng5 {[%emt 0:05:03]} Rg6 {[%emt 0:01:13]} 26. Rxg6 {[%emt 0:00:25]} hxg6 {[%emt 0:00:07]} 27. Rxd4 {[%emt 0:00:54]} N7b6 {[%emt 0:00:56]} 28. g3 {[%emt 0:02:37]} Rc8 {[%emt 0:02:03]} 29. Bh3 {[%emt 0:02:23]} Re8 {[%emt 0:02:30]} 30. Rh4 {[%emt 0:00:36]} Nc7 {[%emt 0:01:22]} 31. Ne6 {[%emt 0:01:03]} Ncd5 {[%emt 0:01:07]} 32. Nf4 {[%emt 0:02:22]} Nxf4 {[%emt 0:01:04]} 33. Bxf4+ {[%emt 0:00:16]} Kg7 {[%emt 0:00:28]} 34. Be5+ {[%emt 0:00:19]} Kf7 {[%emt 0:00:31]} 35. Rh7+ {[%emt 0:00:17]} Kg8 {[%emt 0:00:41]} 36. Rg7+ {[%emt 0:01:56]} Kh8 {[%emt 0:00:20]} 37. Rxe7+ {[%emt 0:00:11]} Kg8 {[%emt 0:00:17]} 38. Rxe8+ {[%emt 0:00:21]} Kf7 {[%emt 0:00:17]} 39. Rh8 {[%emt 0:00:32]} 1-0

[Event "EYCC Girls-U10 2019"]
[Site "Bratislava"]
[Date "2019.08.10"]
[Round "9.12"]
[White "Haasova, Timea"]
[Black "Guzun, Lavinia"]
[Result "0-1"]
[ECO "B41"]
[WhiteElo "1287"]
[BlackElo "1205"]
[Annotator "NA RC"]
[PlyCount "112"]
[EventDate "2019.08.02"]
[EventType "swiss"]
[EventCountry "SVK"]
[SourceTitle "playchess.com"]
[Source "ChessBase"]
[SourceQuality "1"]
[TimeControl "40/5400+30:1800+30"]

1. e4 {[%emt 0:00:00]} c5 {[%emt 0:00:00]} 2. Nf3 {[%emt 0:00:00]} e6 {[%emt 0:00:00]} 3. d4 {[%emt 0:00:00]} cxd4 {[%emt 0:00:00]} 4. Nxd4 {[%emt 0:00:00]} a6 {[%emt 0:00:00]} 5. c4 {[%emt 0:00:00]} Qc7 {[%emt 0:00:00]} 6. Nc3 {[%emt 0:00:12]} Nf6 {[%emt 0:00:04]} 7. a3 {[%emt 0:00:19]} b6 {[%emt 0:00:35]} 8. Be3 {[%emt 0:00:56]} Bb7 {[%emt 0:00:32]} 9. f3 {[%emt 0:00:08]} Be7 {[%emt 0:01:24]} 10. Be2 {[%emt 0:01:03]} O-O {[%emt 0:00:40]} 11. O-O {[%emt 0:13:40]} Rd8 {[%emt 0:01:49]} 12. Rc1 {[%emt 0:07:59]} Bc5 {[%emt 0:03:22]} 13. b4 {[%emt 0:03:14]} Bd6 {[%emt 0:02:12]} 14. h3 {[%emt 0:03:56]} Nh5 {[%emt 0:04:28]} 15. Bf2 {[%emt 0:10:25]} Bf4 {[%emt 0:05:59]} 16. Rc2 {[%emt 0:05:00]} Qe5 {[%emt 0:01:53]} 17. Nb3 {[%emt 0:07:49]} Rc8 {[%emt 0:07:41]} 18. Na4 {[%emt 0:04:24]} Qg5 {[%emt 0:22:39]} 19. Qd3 {[%emt 0:13:14]} Bh2+ {[%emt 0:05:06]} 20. Kxh2 {[%emt 0:04:56]} Nf4 {[%emt 0:00:52]} 21. g3 {[%emt 0:01:15]} Nxd3 {[%emt 0:00:22]} 22. Bxd3 {[%emt 0:00:15]} b5 {[%emt 0:02:24]} 23. Nb6 {[%emt 0:00:59]} Rc6 {[%emt 0:00:55]} 24. Nxa8 {[%emt 0:01:25]} Bxa8 {[%emt 0:00:09]} 25. Rfc1 {[%emt 0:01:36]} Qd8 {[%emt 0:01:41]} 26. cxb5 {[%emt 0:01:00]} axb5 {[%emt 0:00:24]} 27. Bxb5 {[%emt 0:00:46]} Rxc2 {[%emt 0:00:08]} 28. Rxc2 {[%emt 0:00:08]} h6 {[%emt 0:00:20]} 29. g4 {[%emt 0:03:52]} d5 {[%emt 0:01:32]} 30. Bd3 {[%emt 0:04:18]} dxe4 {[%emt 0:00:53]} 31. Bxe4 {[%emt 0:00:34]} Bxe4 {[%emt 0:00:23]} 32. fxe4 {[%emt 0:00:17]} Qd3 {[%emt 0:00:38]} 33. Rc8+ {[%emt 0:00:57]} Kh7 {[%emt 0:00:06]} 34. Nc5 {[%emt 0:04:00]} Qd6+ {[%emt 0:01:30]} 35. Kg2 {[%emt 0:01:02]} Nc6 {[%emt 0:00:31]} 36. Bg3 {[%emt 0:01:21]} Qd2+ {[%emt 0:00:22]} 37. Bf2 {[%emt 0:00:24]} Ne5 {[%emt 0:01:03]} 38. Rc7 {[%emt 0:01:12]} Qe2 {[%emt 0:00:35]} 39. a4 {[%emt 0:02:03]} Qf3+ {[%emt 0:00:12]} 40. Kf1 {[%emt 0:00:00]} Qxh3+ {[%emt 0:00:00]} 41. Ke1 {[%emt 0:03:33]} Qc3+ {[%emt 0:03:24]} 42. Ke2 {[%emt 0:02:37]} Qxb4 {[%emt 0:00:27]} 43. Rb7 {[%emt 0:01:15]} Qc4+ {[%emt 0:00:12]} 44. Kd2 {[%emt 0:01:05]} Qa2+ {[%emt 0:01:31]} 45. Ke3 {[%emt 0:00:39]} Nxg4+ {[%emt 0:00:20]} 46. Kf3 {[%emt 0:01:24]} Qxf2+ {[%emt 0:00:44]} 47. Kxg4 {[%emt 0:02:10]} Qxc5 {[%emt 0:00:17]} 48. Rxf7 {[%emt 0:00:40]} Qg1+ {[%emt 0:01:02]} 49. Kh3 {[%emt 0:01:35]} Qh1+ {[%emt 0:00:12]} 50. Kg4 {[%emt 0:00:23]} Qxe4+ {[%emt 0:00:07]} 51. Rf4 {[%emt 0:00:30]} h5+ {[%emt 0:00:45]} 52. Kg5 {[%emt 0:01:19]} Qe5+ {[%emt 0:00:11]} 53. Kh4 {[%emt 0:01:05]} Qxf4+ {[%emt 0:00:17]} 54. Kh3 {[%emt 0:00:26]} Qf2 {[%emt 0:00:13]} 55. a5 {[%emt 0:00:29]} g5 {[%emt 0:00:09]} 56. a6 {[%emt 0:00:12]} g4# 0-1

[Event "EYCC Girls-U10 2019"]
[Site "Bratislava"]
[Date "2019.08.10"]
[Round "9.13"]
[White "Horkova, Tereza"]
[Black "Zubkovskaya, Ekaterina"]
[Result "1/2-1/2"]
[ECO "C53"]
[WhiteElo "1287"]
[BlackElo "1449"]
[Annotator "NA RC"]
[PlyCount "60"]
[EventDate "2019.08.02"]
[EventType "swiss"]
[EventCountry "SVK"]
[SourceTitle "playchess.com"]
[Source "ChessBase"]
[SourceQuality "1"]
[TimeControl "40/5400+30:1800+30"]

1. e4 {[%emt 0:00:00]} e5 {[%emt 0:00:00]} 2. Nf3 {[%emt 0:00:00]} Nc6 {[%emt 0:00:00]} 3. Bc4 {[%emt 0:00:00]} Bc5 {[%emt 0:00:00]} 4. c3 {[%emt 0:00:00]} d6 {[%emt 0:00:23]} 5. d4 {[%emt 0:00:22]} exd4 {[%emt 0:00:09]} 6. cxd4 {[%emt 0:00:05]} Bb4+ {[%emt 0:00:07]} 7. Bd2 {[%emt 0:00:07]} Bxd2+ {[%emt 0:00:06]} 8. Nbxd2 {[%emt 0:00:05]} Nf6 {[%emt 0:02:48]} 9. h3 {[%emt 0:01:59]} O-O {[%emt 0:00:14]} 10. O-O {[%emt 0:00:14]} Re8 {[%emt 0:00:48]} 11. Re1 {[%emt 0:00:14]} a6 {[%emt 0:00:51]} 12. Ng5 {[%emt 0:04:09]} Rf8 {[%emt 0:00:39]} 13. Qb3 {[%emt 0:07:35]} Qd7 {[%emt 0:00:43]} 14. Qc3 {[%emt 0:02:42]} h6 {[%emt 0:00:56]} 15. Ngf3 {[%emt 0:02:30]} b5 {[%emt 0:01:54]} 16. Bd3 {[%emt 0:01:49]} Bb7 {[%emt 0:00:18]} 17. e5 {[%emt 0:04:05]} dxe5 {[%emt 0:01:38]} 18. dxe5 {[%emt 0:00:07]} Nd5 {[%emt 0:00:50]} 19. Qc2 {[%emt 0:00:54]} Ndb4 {[%emt 0:00:23]} 20. Bh7+ {[%emt 0:00:17]} Kh8 {[%emt 0:00:44]} 21. Qf5 {[%emt 0:00:40]} Qe7 {[%emt 0:01:26]} 22. a3 {[%emt 0:00:52]} Nd5 {[%emt 0:00:10]} 23. Qd3 {[%emt 0:01:32]} Rad8 {[%emt 0:01:44]} 24. Be4 {[%emt 0:01:41]} Nxe5 {[%emt 0:04:42]} 25. Nxe5 {[%emt 0:01:26]} Qxe5 {[%emt 0:00:16]} 26. Bxd5 {[%emt 0:01:27]} Qxd5 {[%emt 0:01:08]} 27. Qxd5 {[%emt 0:00:11]} Bxd5 {[%emt 0:00:08]} 28. Re7 {[%emt 0:00:22]} c6 {[%emt 0:02:39]} 29. Rae1 {[%emt 0:00:12]} Ra8 {[%emt 0:01:56]} 30. b4 {[%emt 0:01:44]} Rfd8 {[%emt 0:01:17]} 1/2-1/2

[Event "EYCC Girls-U10 2019"]
[Site "Bratislava"]
[Date "2019.08.10"]
[Round "9.14"]
[White "Sosovickova, Martina"]
[Black "Stefan, Iulia-Cristiana"]
[Result "0-1"]
[ECO "B03"]
[WhiteElo "1200"]
[BlackElo "1389"]
[Annotator "NA RC"]
[PlyCount "72"]
[EventDate "2019.08.02"]
[EventType "swiss"]
[EventCountry "SVK"]
[SourceTitle "playchess.com"]
[Source "ChessBase"]
[SourceQuality "1"]
[TimeControl "40/5400+30:1800+30"]

1. e4 {[%emt 0:00:00]} Nf6 {[%emt 0:00:00]} 2. e5 {[%emt 0:00:00]} Nd5 {[%emt 0:00:00]} 3. d4 {[%emt 0:00:00]} d6 {[%emt 0:00:00]} 4. c4 {[%emt 0:00:17]} Nb6 {[%emt 0:00:00]} 5. exd6 {[%emt 0:00:09]} cxd6 {[%emt 0:00:00]} 6. Nc3 {[%emt 0:01:26]} g6 {[%emt 0:00:28]} 7. Be3 {[%emt 0:00:41]} Bg7 {[%emt 0:00:28]} 8. Bd3 {[%emt 0:01:23]} O-O {[%emt 0:00:29]} 9. b3 {[%emt 0:02:01]} Nc6 {[%emt 0:02:04]} 10. Nge2 {[%emt 0:01:07]} d5 {[%emt 0:29:00]} 11. c5 {[%emt 0:03:44]} Nd7 {[%emt 0:01:51]} 12. Rc1 {[%emt 0:04:10]} Nxc5 {[%emt 0:01:51]} 13. dxc5 {[%emt 0:01:08]} d4 {[%emt 0:00:32]} 14. Nxd4 {[%emt 0:00:41]} Nxd4 {[%emt 0:00:54]} 15. O-O {[%emt 0:02:06]} Bf5 {[%emt 0:09:30]} 16. Bxf5 {[%emt 0:06:40]} Nxf5 {[%emt 0:00:28]} 17. Bd2 {[%emt 0:01:21]} Rc8 {[%emt 0:03:17]} 18. Ne2 {[%emt 0:03:30]} Qd7 {[%emt 0:07:05]} 19. Qc2 {[%emt 0:06:24]} Qc6 {[%emt 0:04:21]} 20. Rfe1 {[%emt 0:05:38]} Rfd8 {[%emt 0:11:48]} 21. b4 {[%emt 0:06:35]} Nh4 {[%emt 0:03:53]} 22. f3 {[%emt 0:01:42]} Nf5 {[%emt 0:04:37]} 23. a3 {[%emt 0:03:47]} Rd7 {[%emt 0:02:49]} 24. Bc3 {[%emt 0:03:08]} Bh6 {[%emt 0:04:52]} 25. Rcd1 {[%emt 0:01:07]} Ne3 {[%emt 0:01:01]} 26. Qb3 {[%emt 0:01:46]} Nxd1 {[%emt 0:01:48]} 27. Rxd1 {[%emt 0:00:10]} Rcd8 {[%emt 0:02:05]} 28. Re1 {[%emt 0:01:41]} Bd2 {[%emt 0:02:54]} 29. Bxd2 {[%emt 0:01:07]} Rxd2 {[%emt 0:00:16]} 30. Ng3 {[%emt 0:00:43]} R8d7 {[%emt 0:03:18]} 31. Ne4 {[%emt 0:02:14]} R2d3 {[%emt 0:00:48]} 32. Qb2 {[%emt 0:01:58]} Rd1 {[%emt 0:01:20]} 33. Qc3 {[%emt 0:00:36]} Rxe1+ {[%emt 0:00:27]} 34. Qxe1 {[%emt 0:00:11]} Qd5 {[%emt 0:01:01]} 35. Qh4 {[%emt 0:01:20]} Qd4+ {[%emt 0:00:42]} 36. Qf2 {[%emt 0:00:57]} Qa1+ {[%emt 0:00:17]} 0-1

[Event "EYCC Girls-U10 2019"]
[Site "Bratislava"]
[Date "2019.08.10"]
[Round "9.15"]
[White "Liashkevich, Lizaveta"]
[Black "Bendik, Margarita"]
[Result "1-0"]
[ECO "D10"]
[WhiteElo "1406"]
[BlackElo "1188"]
[Annotator "NA RC"]
[PlyCount "99"]
[EventDate "2019.08.02"]
[EventType "swiss"]
[EventCountry "SVK"]
[SourceTitle "playchess.com"]
[Source "ChessBase"]
[SourceQuality "1"]
[TimeControl "40/5400+30:1800+30"]

1. d4 {[%emt 0:00:00]} d5 {[%emt 0:00:00]} 2. c4 {[%emt 0:00:00]} c6 {[%emt 0:00:00]} 3. Nc3 {[%emt 0:00:00]} Nf6 {[%emt 0:00:03]} 4. cxd5 {[%emt 0:00:28]} cxd5 {[%emt 0:00:26]} 5. Bf4 {[%emt 0:00:55]} Nc6 {[%emt 0:01:05]} 6. e3 {[%emt 0:00:24]} e6 {[%emt 0:01:22]} 7. Rc1 {[%emt 0:02:11]} a6 {[%emt 0:08:20]} 8. Bd3 {[%emt 0:03:31]} Qb6 {[%emt 0:09:51]} 9. Qd2 {[%emt 0:16:14]} Be7 {[%emt 0:03:42]} 10. Nf3 {[%emt 0:01:38]} h6 {[%emt 0:02:36]} 11. h3 {[%emt 0:00:48]} Bd7 {[%emt 0:01:22]} 12. O-O {[%emt 0:00:34]} O-O {[%emt 0:00:43]} 13. Bb1 {[%emt 0:01:05]} Rac8 {[%emt 0:05:12]} 14. Ne5 {[%emt 0:10:10]} Rfd8 {[%emt 0:10:48]} 15. Rfd1 {[%emt 0:10:23]} Bf8 {[%emt 0:03:23]} 16. Na4 {[%emt 0:03:41]} Qa7 {[%emt 0:08:51]} 17. Nc3 {[%emt 0:05:59]} Be8 {[%emt 0:06:12]} 18. Kh1 {[%emt 0:04:15]} g6 {[%emt 0:02:35]} 19. g4 {[%emt 0:03:52]} g5 {[%emt 0:04:46]} 20. Bh2 Bg7 {[%emt 0:01:51]} 21. Qe2 {[%emt 0:03:22]} Nxe5 {[%emt 0:04:03]} 22. Bxe5 {[%emt 0:00:39]} Nd7 {[%emt 0:00:28]} 23. Bg3 {[%emt 0:00:30]} Nb6 {[%emt 0:00:58]} 24. b3 {[%emt 0:01:27]} Nd7 {[%emt 0:03:13]} 25. Qd3 {[%emt 0:00:48]} Nf8 26. h4 {[%emt 0:01:48]} f6 {[%emt 0:02:08]} 27. h5 Rc6 {[%emt 0:02:04]} 28. Ne2 {[%emt 0:02:17]} Rdc8 {[%emt 0:00:23]} 29. Rxc6 {[%emt 0:00:15]} Bxc6 {[%emt 0:00:34]} 30. Kh2 {[%emt 0:02:02]} Bb5 {[%emt 0:00:50]} 31. Qd2 {[%emt 0:00:19]} Qb6 {[%emt 0:01:46]} 32. Nc3 {[%emt 0:02:11]} Qa5 {[%emt 0:01:53]} 33. Nxb5 {[%emt 0:01:04]} Qxb5 {[%emt 0:00:18]} 34. Bd3 {[%emt 0:02:43]} Qc6 {[%emt 0:00:48]} 35. f3 {[%emt 0:01:18]} Nd7 {[%emt 0:01:11]} 36. e4 {[%emt 0:01:41]} b5 {[%emt 0:01:33]} 37. exd5 {[%emt 0:01:08]} exd5 {[%emt 0:00:35]} 38. Bf5 {[%emt 0:00:20]} Qb7 {[%emt 0:03:58]} 39. Qe3 {[%emt 0:01:38]} Nf8 {[%emt 0:04:39]} 40. Bxc8 {[%emt 0:00:00]} Qxc8 {[%emt 0:00:00]} 41. Rc1 {[%emt 0:01:04]} Qe6 {[%emt 0:01:16]} 42. Qxe6+ {[%emt 0:03:54]} Nxe6 {[%emt 0:00:05]} 43. Bf2 {[%emt 0:00:38]} Nf4 {[%emt 0:00:44]} 44. Rc8+ {[%emt 0:01:14]} Kf7 {[%emt 0:00:26]} 45. Be3 {[%emt 0:01:43]} Nd3 {[%emt 0:00:15]} 46. Rc7+ {[%emt 0:00:34]} Kg8 {[%emt 0:00:14]} 47. Rd7 {[%emt 0:00:34]} Nb4 {[%emt 0:00:48]} 48. a4 {[%emt 0:01:25]} Nc2 {[%emt 0:01:17]} 49. Bf2 {[%emt 0:01:49]} f5 {[%emt 0:00:20]} 50. Rxd5 {[%emt 0:01:00]} 1-0

[Event "EYCC Girls-U10 2019"]
[Site "Bratislava"]
[Date "2019.08.10"]
[Round "9.16"]
[White "Kollia, Evgenia"]
[Black "Abbasova, Zarifa"]
[Result "1-0"]
[ECO "C42"]
[WhiteElo "1034"]
[BlackElo "1353"]
[Annotator "NA RC"]
[PlyCount "41"]
[EventDate "2019.08.02"]
[EventType "swiss"]
[EventCountry "SVK"]
[SourceTitle "playchess.com"]
[Source "ChessBase"]
[SourceQuality "1"]
[TimeControl "40/5400+30:1800+30"]

1. e4 {[%emt 0:00:00]} e5 {[%emt 0:00:00]} 2. Nf3 {[%emt 0:00:00]} Nf6 {[%emt 0:00:00]} 3. Nxe5 {[%emt 0:00:36]} d6 {[%emt 0:00:00]} 4. Nf3 {[%emt 0:00:22]} Nxe4 {[%emt 0:00:00]} 5. Qe2 {[%emt 0:00:38]} Qe7 {[%emt 0:00:00]} 6. d3 {[%emt 0:00:36]} Nf6 {[%emt 0:00:00]} 7. Bg5 {[%emt 0:00:12]} Qxe2+ {[%emt 0:00:12]} 8. Bxe2 {[%emt 0:01:24]} Be7 {[%emt 0:00:06]} 9. Nc3 {[%emt 0:01:51]} c6 {[%emt 0:01:12]} 10. O-O-O {[%emt 0:02:20]} Bg4 {[%emt 0:06:42]} 11. Rhe1 {[%emt 0:09:53]} Kd7 {[%emt 0:05:27]} 12. Nd4 {[%emt 0:10:32]} Bxe2 {[%emt 0:07:08]} 13. Rxe2 {[%emt 0:05:19]} h6 {[%emt 0:01:03]} 14. Nf5 {[%emt 0:13:20]} Bd8 {[%emt 0:13:12]} 15. Bf4 {[%emt 0:08:46]} g6 {[%emt 0:03:43]} 16. Nxd6 {[%emt 0:04:28]} Bc7 {[%emt 0:00:21]} 17. Nce4 {[%emt 0:05:05]} Bxd6 {[%emt 0:09:34]} 18. Nxf6+ {[%emt 0:10:10]} Kc7 {[%emt 0:01:31]} 19. Re7+ {[%emt 0:03:37]} Kc8 {[%emt 0:02:16]} 20. Bxd6 {[%emt 0:01:36]} Rd8 {[%emt 0:01:11]} 21. Rc7# {[%emt 0:01:17]} 1-0

[Event "EYCC Girls-U10 2019"]
[Site "Bratislava"]
[Date "2019.08.10"]
[Round "9.18"]
[White "Tkacheva, Anna S."]
[Black "Eros, Vivien"]
[Result "0-1"]
[ECO "B21"]
[WhiteElo "1264"]
[BlackElo "1251"]
[Annotator "NA RC"]
[PlyCount "72"]
[EventDate "2019.08.02"]
[EventType "swiss"]
[EventCountry "SVK"]
[SourceTitle "playchess.com"]
[Source "ChessBase"]
[SourceQuality "1"]
[TimeControl "40/5400+30:1800+30"]

1. e4 {[%emt 0:00:00]} c5 {[%emt 0:00:00]} 2. d4 {[%emt 0:00:00]} cxd4 {[%emt 0:01:04]} 3. c3 {[%emt 0:00:05]} dxc3 4. Nxc3 {[%emt 0:00:22]} Nc6 {[%emt 0:03:13]} 5. Nf3 {[%emt 0:00:15]} d6 {[%emt 0:01:22]} 6. Bc4 {[%emt 0:01:26]} e6 {[%emt 0:01:35]} 7. O-O {[%emt 0:00:52]} g6 {[%emt 0:00:22]} 8. Qe2 {[%emt 0:01:13]} Bg7 {[%emt 0:00:45]} 9. Rd1 {[%emt 0:00:27]} Nge7 {[%emt 0:01:19]} 10. Bf4 {[%emt 0:03:57]} e5 {[%emt 0:04:04]} 11. Bg3 {[%emt 0:02:23]} a6 {[%emt 0:00:54]} 12. Rd2 {[%emt 0:03:43]} Bg4 {[%emt 0:01:51]} 13. Rad1 {[%emt 0:00:42]} Nd4 {[%emt 0:00:39]} 14. Qe3 {[%emt 0:02:58]} O-O {[%emt 0:02:32]} 15. Ne2 {[%emt 0:03:38]} Bxf3 {[%emt 0:02:38]} 16. gxf3 {[%emt 0:00:19]} Nec6 {[%emt 0:04:09]} 17. Bd5 {[%emt 0:04:08]} Nxe2+ {[%emt 0:00:15]} 18. Rxe2 {[%emt 0:06:07]} Nd4 {[%emt 0:01:08]} 19. Red2 {[%emt 0:02:05]} Qd7 {[%emt 0:08:25]} 20. Kg2 {[%emt 0:05:37]} Rac8 {[%emt 0:08:14]} 21. f4 {[%emt 0:05:09]} Bh6 {[%emt 0:01:17]} 22. f3 {[%emt 0:08:54]} Rc7 {[%emt 0:17:18]} 23. Qd3 {[%emt 0:03:08]} Rfc8 {[%emt 0:14:36]} 24. Rf2 {[%emt 0:03:53]} exf4 {[%emt 0:07:36]} 25. Qxd4 {[%emt 0:07:39]} fxg3 {[%emt 0:00:16]} 26. hxg3 {[%emt 0:00:14]} Bg7 {[%emt 0:00:33]} 27. Qb4 {[%emt 0:01:03]} Bh6 {[%emt 0:10:26]} 28. f4 {[%emt 0:01:24]} Qg4 {[%emt 0:00:31]} 29. Re1 {[%emt 0:04:22]} Rc2 {[%emt 0:02:22]} 30. Qb3 {[%emt 0:01:54]} Rxf2+ {[%emt 0:03:23]} 31. Kxf2 {[%emt 0:00:16]} Qd7 {[%emt 0:01:51]} 32. Rd1 {[%emt 0:01:17]} Qe7 {[%emt 0:00:31]} 33. Kf3 {[%emt 0:02:21]} Kg7 {[%emt 0:00:28]} 34. Qb6 {[%emt 0:00:40]} g5 {[%emt 0:00:45]} 35. Qd4+ {[%emt 0:01:30]} Kg8 {[%emt 0:00:30]} 36. Bb3 {[%emt 0:02:12]} gxf4 {[%emt 0:00:23]} 0-1

[Event "EYCC Girls-U10 2019"]
[Site "Bratislava"]
[Date "2019.08.10"]
[Round "9.19"]
[White "Bat, Anu"]
[Black "Bursali, Ela"]
[Result "1-0"]
[ECO "D00"]
[WhiteElo "1457"]
[BlackElo "1197"]
[Annotator "NA RC"]
[PlyCount "118"]
[EventDate "2019.08.02"]
[EventType "swiss"]
[EventCountry "SVK"]
[SourceTitle "playchess.com"]
[Source "ChessBase"]
[SourceQuality "1"]
[TimeControl "40/5400+30:1800+30"]

1. d4 {[%emt 0:00:00]} d5 {[%emt 0:00:00]} 2. Bg5 {[%emt 0:00:00]} Nf6 {[%emt 0:02:04]} 3. Bxf6 {[%emt 0:00:06]} exf6 {[%emt 0:00:45]} 4. g3 {[%emt 0:00:25]} c6 {[%emt 0:01:33]} 5. Bg2 {[%emt 0:03:18]} Be6 6. e3 {[%emt 0:00:16]} Bd6 {[%emt 0:02:25]} 7. Ne2 {[%emt 0:00:33]} Nd7 {[%emt 0:00:53]} 8. Nd2 {[%emt 0:00:55]} Qc7 {[%emt 0:01:29]} 9. O-O {[%emt 0:00:47]} O-O {[%emt 0:00:16]} 10. Rc1 {[%emt 0:00:46]} Rac8 {[%emt 0:00:28]} 11. c4 {[%emt 0:01:07]} dxc4 {[%emt 0:03:12]} 12. Nxc4 {[%emt 0:00:15]} Bxc4 {[%emt 0:00:52]} 13. Rxc4 {[%emt 0:00:15]} Nb6 {[%emt 0:03:18]} 14. Rc1 {[%emt 0:00:49]} Qd7 {[%emt 0:01:23]} 15. e4 {[%emt 0:02:03]} Qe7 {[%emt 0:00:51]} 16. Nc3 {[%emt 0:01:03]} Bb4 {[%emt 0:02:00]} 17. a3 {[%emt 0:02:22]} Bxc3 {[%emt 0:00:04]} 18. Rxc3 {[%emt 0:00:53]} Rfd8 {[%emt 0:00:25]} 19. Rd3 {[%emt 0:01:38]} Rd6 {[%emt 0:01:44]} 20. Re1 {[%emt 0:06:10]} Rcd8 {[%emt 0:00:36]} 21. Qd2 {[%emt 0:08:51]} Nc4 {[%emt 0:02:09]} 22. Qc3 {[%emt 0:01:25]} Ne5 {[%emt 0:02:39]} 23. Rd2 {[%emt 0:00:52]} Qd7 {[%emt 0:00:47]} 24. f4 {[%emt 0:01:36]} Ng6 {[%emt 0:00:27]} 25. Red1 {[%emt 0:01:28]} Nf8 {[%emt 0:02:06]} 26. e5 {[%emt 0:00:54]} fxe5 {[%emt 0:00:17]} 27. fxe5 {[%emt 0:00:13]} Rh6 {[%emt 0:00:50]} 28. d5 {[%emt 0:00:30]} Qc7 {[%emt 0:00:40]} 29. d6 {[%emt 0:03:56]} Qd7 {[%emt 0:01:55]} 30. b4 {[%emt 0:01:10]} Ne6 {[%emt 0:02:06]} 31. h4 {[%emt 0:03:30]} f6 {[%emt 0:01:49]} 32. exf6 {[%emt 0:03:19]} Rxf6 {[%emt 0:00:14]} 33. Bh3 {[%emt 0:00:41]} a6 {[%emt 0:01:39]} 34. a4 {[%emt 0:00:45]} Rc8 {[%emt 0:00:56]} 35. Re1 {[%emt 0:01:15]} Qf7 {[%emt 0:01:35]} 36. d7 {[%emt 0:02:03]} Rd8 {[%emt 0:00:15]} 37. Rde2 {[%emt 0:02:50]} Nf8 {[%emt 0:00:29]} 38. Re8 {[%emt 0:01:36]} Rf3 {[%emt 0:01:47]} 39. Be6 {[%emt 0:02:20]} Rxc3 {[%emt 0:00:42]} 40. Bxf7+ {[%emt 0:00:00]} Kxf7 {[%emt 0:00:00]} 41. Rxd8 {[%emt 0:01:56]} Rxg3+ {[%emt 0:00:41]} 42. Kh2 {[%emt 0:01:32]} Rd3 {[%emt 0:00:08]} 43. Rf1+ {[%emt 0:00:33]} Ke7 {[%emt 0:00:11]} 44. Rfxf8 {[%emt 0:00:46]} Rd2+ {[%emt 0:00:22]} 45. Kg1 {[%emt 0:00:14]} Rd1+ {[%emt 0:00:04]} 46. Kf2 {[%emt 0:00:17]} Rd2+ {[%emt 0:00:09]} 47. Ke1 {[%emt 0:00:13]} Rxd7 {[%emt 0:00:12]} 48. Rxd7+ {[%emt 0:00:17]} Kxd7 {[%emt 0:00:04]} 49. Rf7+ {[%emt 0:00:12]} Kd6 {[%emt 0:00:06]} 50. Kd2 {[%emt 0:00:29]} b5 {[%emt 0:00:04]} 51. axb5 {[%emt 0:01:10]} axb5 {[%emt 0:00:07]} 52. Kc3 {[%emt 0:00:12]} c5 {[%emt 0:00:05]} 53. Rxg7 {[%emt 0:00:24]} cxb4+ {[%emt 0:00:25]} 54. Kxb4 {[%emt 0:00:10]} Ke6 {[%emt 0:00:14]} 55. Rxh7 {[%emt 0:00:16]} Kf6 {[%emt 0:00:05]} 56. Kxb5 {[%emt 0:00:16]} Kg6 {[%emt 0:00:31]} 57. Re7 {[%emt 0:00:11]} Kh6 {[%emt 0:00:06]} 58. Kc5 {[%emt 0:00:29]} Kh5 {[%emt 0:00:07]} 59. Rg7 {[%emt 0:00:21]} Kxh4 {[%emt 0:00:06]} 1-0